fUSD/lending_fUSD_20251228
["ID","MTS","AMOUNT","RATE_DAILY","PERIOD"]
[399949966,1766932241267,-150.0,0.00015913,2]
[399949967,1766932241278,-500.0,0.00015921,2]
[399949968,1766932241289,-500.0,0.00015921,2]
[399949969,1766932241299,-150.0,0.00015925,2]
[399949970,1766932241311,-150.0,0.00015951,2]
[399949971,1766932241321,-1680.0,0.00015958,2]
[399949972,1766932241331,-150.0,0.00015967,2]
[399949973,1766932241342,-150.0,0.00015967,2]
[399949974,1766932241356,-150.0,0.00015983,2]
[399949975,1766932241367,-2067.76682643,0.0001599,2]
[399949976,1766932241378,-150.0,0.00015992,2]
[399949977,1766932241389,-150.0,0.00015995,2]
[399949978,1766932241400,-150.0,0.00015995,2]
[399949979,1766932241411,-151.0,0.00015997,2]
[399949980,1766932241422,-215.44156525,0.00015999,2]
[399949981,1766932241432,-435.20795015,0.00015999,2]
[399949982,1766932241443,-282.86156753,0.00015999,2]
[399949983,1766932241454,-1389232.24338038,0.00016,4]
[399949984,1766932241466,-465.28,0.00016,2]
[399949985,1766932241476,-465.28,0.00016,2]
[399949986,1766932241487,-301.59,0.00016,2]
[399949987,1766932241497,-860.31,0.00016,2]
[399949988,1766932241508,-150.0,0.00016003,2]
[399949989,1766932241519,-171.52507016,0.00016011,2]
[399949990,1766932241531,-1809.81260065,0.00016032,2]
[399949991,1766932241541,-150.0,0.00016033,2]
[399949992,1766932241552,-150.0,0.00016043,2]
[399949993,1766932241563,-150.0,0.00016052,2]
[399949994,1766932241574,-150.0,0.0001606,2]
[399949995,1766932241585,-150.0,0.00016066,2]
[399949996,1766932241596,-1514.53,0.00016068,2]
[399949997,1766932241606,-1466.73216774,0.00016068,2]
[399949998,1766932241616,-1153.06788311,0.00016068,2]
[399949999,1766932241627,-1500.0,0.00016068,2]
[399950000,1766932241638,-1500.0,0.00016068,2]
[399950001,1766932241648,-1504.02327644,0.00016068,2]
[399950002,1766932241658,-1500.0,0.00016068,2]
[399950003,1766932241668,-1500.0,0.00016068,2]
[399950004,1766932241678,-660.24393767,0.00016068,2]
[399950005,1766932241688,-1500.0,0.00016068,2]
[399950006,1766932241700,-1500.72417375,0.00016068,2]
[399950007,1766932241709,-892.34072029,0.00016068,2]
[399950008,1766932241720,-1500.0,0.00016068,2]
[399950009,1766932241731,-1500.0,0.00016068,2]
[399950010,1766932241743,-1500.0,0.00016068,2]
[399950011,1766932241754,-223.45084898,0.00016068,2]
[399950012,1766932241764,-1500.0,0.00016068,2]
[399950013,1766932241774,-1500.0,0.00016068,2]
[399950014,1766932241785,-1500.0,0.00016068,2]
[399950015,1766932241795,-500.0,0.00016068,2]
[399950016,1766932241805,-555.26,0.0001607,2]
[399950017,1766932241816,-150.0,0.00016075,2]
[399950018,1766932241826,-440.94,0.00016075,2]
[399950019,1766932241837,-25887.04439985,0.00016078,2]
[399950020,1766932241846,-150.0,0.00016092,2]
[399950021,1766932241856,-255.0,0.00016094,2]
[399950022,1766932241866,-153.09914485,0.00016099,2]
[399950023,1766932241876,-150.0,0.00016116,2]
[399950024,1766932241888,-159.91325088,0.00016137,2]
[399950025,1766932241898,-150.0,0.00016137,2]
[399950026,1766932241909,-150.0,0.00016137,2]
[399950027,1766932241919,-150.0,0.00016137,2]
[399950028,1766932241929,-150.0,0.00016137,2]
[399950029,1766932241939,-150.0,0.00016137,2]
[399950030,1766932241950,-150.0,0.00016137,2]
[399950031,1766932241959,-150.0,0.00016158,2]
[399950032,1766932241970,-171.52507016,0.00016166,2]
[399950033,1766932241980,-1809.81260065,0.00016177,2]
[399950034,1766932241991,-465.28,0.00016178,2]
[399950035,1766932242000,-150.0,0.00016182,2]
[399950036,1766932242010,-151.1,0.00016192,2]
[399950037,1766932242021,-1221.21,0.00016192,2]
[399950038,1766932242031,-173.62,0.00016192,2]
[399950039,1766932242041,-233.3,0.00016192,2]
[399950040,1766932242051,-1118.01,0.00016192,2]
[399950041,1766932242061,-1221.21,0.00016192,2]
[399950042,1766932242072,-465.28,0.00016192,2]
[399950043,1766932242083,-150.0,0.00016192,2]
[399950044,1766932242092,-1221.21,0.00016192,2]
[399950045,1766932242104,-465.28,0.00016192,2]
[399950046,1766932242115,-150.0,0.00016192,2]
[399950047,1766932242125,-1221.21,0.00016192,2]
[399950048,1766932242135,-465.28,0.00016192,2]
[399950049,1766932242148,-1221.21,0.00016192,2]
[399950050,1766932242158,-1221.21,0.00016192,2]
[399950051,1766932242168,-1221.21,0.00016192,2]
[399950052,1766932242180,-150.0,0.00016199,2]
[399950053,1766932242192,-150.0,0.00016208,2]
[399950054,1766932242204,-150.0,0.00016214,2]
[399950055,1766932242214,-159.91325088,0.00016219,2]
[399950056,1766932242224,-150.0,0.00016222,2]
[399950057,1766932242234,-150.0,0.00016231,2]
[399950058,1766932242246,-150.0,0.00016241,2]
[399950059,1766932242257,-25887.04439985,0.00016243,2]
[399950060,1766932242268,-150.0,0.00016271,2]
[399950061,1766932242278,-150.0,0.00016278,2]
[399950062,1766932242288,-150.0,0.00016278,2]
[399950063,1766932242298,-150.0,0.00016278,2]
[399950064,1766932242308,-150.0,0.00016278,2]
[399950065,1766932242318,-150.0,0.00016279,2]
[399950066,1766932242328,-150.0,0.00016279,2]
[399950067,1766932242338,-150.0,0.00016282,2]
[399950068,1766932242348,-150.0,0.00016291,2]
[399950069,1766932242357,-159.91325088,0.00016301,2]
[399950070,1766932242368,-150.0,0.00016307,2]
[399950071,1766932242379,-150.0,0.00016307,2]
[399950072,1766932242390,-1809.81260065,0.00016321,2]
[399950073,1766932242399,-150.0,0.00016323,2]
[399950074,1766932242408,-163.64166088,0.00016338,2]
[399950075,1766932242419,-1514.53,0.00016342,2]
[399950076,1766932242428,-500.0,0.00016342,2]
[399950077,1766932242438,-150.0,0.00016349,2]
[399950078,1766932242448,-159.91325088,0.00016356,2]
[399950079,1766932242458,-150.0,0.0001636,2]
[399950080,1766932242467,-150.0,0.00016365,2]
[399950082,1766932242833,-150.0,0.00016369,2]
[399950083,1766932242853,-465.28,0.00016378,2]
[399950084,1766932242865,-150.0,0.00016392,2]
[399950085,1766932242876,-150.0,0.00016406,2]
[399950086,1766932242888,-25887.04439985,0.00016407,2]
[399950087,1766932242899,-440.94,0.00016415,2]
[399950088,1766932242909,-150.0,0.0001642,2]
[399950089,1766932242919,-150.0,0.0001642,2]
[399950090,1766932242930,-150.0,0.0001642,2]
[399950091,1766932242940,-500.0,0.00016437,2]
[399950092,1766932242950,-500.0,0.00016438,2]
[399950093,1766932242960,-500.0,0.00016438,2]
[399950094,1766932242970,-500.0,0.00016438,2]
[399950095,1766932242979,-500.0,0.00016438,2]
[399950096,1766932242988,-500.0,0.00016438,2]
[399950097,1766932242998,-500.0,0.00016438,2]
[399950098,1766932243009,-500.0,0.00016438,2]
[399950099,1766932243019,-500.0,0.00016438,2]
[399950100,1766932243029,-500.0,0.00016438,2]
[399950101,1766932243039,-500.0,0.00016438,2]
[399950102,1766932243049,-500.0,0.00016438,2]
[399950103,1766932243059,-500.0,0.00016438,2]
[399950104,1766932243070,-500.0,0.00016438,2]
[399950105,1766932243080,-500.0,0.00016438,2]
[399950106,1766932243091,-500.0,0.00016438,2]
[399950107,1766932243100,-500.0,0.00016438,2]
[399950108,1766932243110,-500.0,0.00016438,2]
[399950109,1766932243119,-500.0,0.00016438,2]
[399950110,1766932243129,-500.0,0.00016438,2]
[399950111,1766932243141,-500.0,0.00016438,2]
[399950112,1766932243151,-500.0,0.00016438,2]
[399950113,1766932243160,-500.0,0.00016438,2]
[399950114,1766932243169,-500.0,0.00016438,2]
[399950115,1766932243178,-500.0,0.00016438,2]
[399950116,1766932243187,-500.0,0.00016438,2]
[399950117,1766932243196,-500.0,0.00016438,2]
[399950118,1766932243205,-500.0,0.00016438,2]
[399950119,1766932243214,-500.0,0.00016438,2]
[399950120,1766932243223,-500.0,0.00016438,2]
[399950121,1766932243233,-500.0,0.00016438,2]
[399950122,1766932243242,-500.0,0.00016438,2]
[399950123,1766932243253,-500.0,0.00016438,2]
[399950124,1766932243263,-500.0,0.00016438,2]
[399950125,1766932243272,-500.0,0.00016438,2]
[399950126,1766932243282,-500.0,0.00016438,2]
[399950127,1766932243291,-500.0,0.00016438,2]
[399950128,1766932243300,-500.0,0.00016438,2]
[399950129,1766932243310,-500.0,0.00016438,2]
[399950130,1766932243319,-500.0,0.00016438,2]
[399950131,1766932243328,-500.0,0.00016438,2]
[399950132,1766932243337,-500.0,0.00016438,2]
[399950133,1766932243347,-500.0,0.00016438,2]
[399950134,1766932243356,-500.0,0.00016438,2]
[399950135,1766932243366,-500.0,0.00016438,2]
[399950136,1766932243375,-500.0,0.00016438,2]
[399950137,1766932243387,-159.91325088,0.00016438,2]
[399950138,1766932243396,-801.24318658,0.00016438,2]
[399950139,1766932243407,-150.0,0.00016446,2]
[399950140,1766932243417,-150.0,0.00016448,2]
[399950141,1766932243428,-150.0,0.0001645,2]
[399950142,1766932243437,-168.0,0.00016455,2]
[399950143,1766932243447,-1809.81260065,0.00016466,2]
[399950144,1766932243458,-150.0,0.00016477,2]
[399950145,1766932243468,-150.0,0.00016489,2]
[399950146,1766932243478,-150.0,0.00016491,2]
[399950147,1766932243488,-153.09914485,0.00016499,2]
[399950148,1766932243499,-159.91325088,0.00016521,2]
[399950149,1766932243508,-150.0,0.00016523,2]
[399950150,1766932243517,-163.64166088,0.00016525,2]
[399950151,1766932243526,-150.0,0.00016531,2]
[399950152,1766932243536,-150.0,0.00016539,2]
[399950153,1766932243545,-168.0,0.0001656,2]
[399950154,1766932243555,-150.0,0.00016562,2]
[399950155,1766932243565,-150.0,0.00016562,2]
[399950156,1766932243575,-150.0,0.00016562,2]
[399950157,1766932243585,-150.0,0.00016562,2]
[399950158,1766932243594,-25887.04439985,0.00016571,2]
[399950159,1766932243603,-150.0,0.00016572,2]
[399950160,1766932243613,-1364.91486209,0.00016573,2]
[399950161,1766932243624,-159.91325088,0.00016575,2]
[399950162,1766932243634,-150.0,0.000166,2]
[399950163,1766932243644,-2302.1,0.00016602,2]
[399950164,1766932243656,-150.0,0.00016609,2]
[399950165,1766932243666,-1809.81260065,0.00016611,2]
[399950166,1766932243676,-150.0,0.00016613,2]
[399950167,1766932243686,-1514.53,0.00016616,2]
[399950168,1766932243696,-500.0,0.00016616,2]
[399950169,1766932243707,-150.0,0.00016629,2]
[399950170,1766932243718,-171.52507016,0.00016632,2]
[399950171,1766932243728,-150.0,0.00016632,2]
[399950172,1766932243739,-150.0,0.00016647,2]
[399950173,1766932243751,-150.0,0.00016647,2]
[399950174,1766932243760,-150.0,0.00016655,2]
[399950175,1766932243770,-159.91325088,0.00016658,2]
[399950176,1766932243779,-1295.70806588,0.0001666,2]
[399950177,1766932243789,-150.0,0.00016677,2]
[399950178,1766932243798,-150.0,0.00016696,2]
[399950179,1766932243807,-150.0,0.00016703,2]
[399950180,1766932243818,-150.0,0.00016703,2]
[399950181,1766932243827,-1000.0,0.00016707,2]
[399950182,1766932243839,-159.91325088,0.00016712,2]
[399950183,1766932243849,-163.64166088,0.00016713,2]
[399950184,1766932243859,-150.0,0.00016718,2]
[399950185,1766932243870,-150.0,0.00016732,2]
[399950186,1766932243881,-25887.04439985,0.00016736,2]
[399950187,1766932243891,-150.0,0.00016738,2]
[399950188,1766932243902,-150.0,0.00016755,2]
[399950189,1766932243911,-1809.81260065,0.00016755,2]
[399950190,1766932243920,-889.20207813,0.00016763,2]
[399950191,1766932243929,-150.0,0.00016774,2]
[399950192,1766932243938,-150.0,0.00016779,2]
[399950193,1766932243949,-293.96,0.00016792,2]
[399950194,1766932243960,-159.91325088,0.00016795,2]
[399950195,1766932243970,-150.0,0.00016798,2]
[399950196,1766932243979,-150.0,0.00016807,2]
[399950197,1766932243989,-207.36626144,0.00016811,2]
[399950198,1766932243999,-150.0,0.00016816,2]
[399950199,1766932244008,-150.0,0.00016821,2]
[399950200,1766932244018,-465.28,0.00016822,2]
[399950201,1766932244028,-465.28,0.00016822,2]
[399950202,1766932244038,-465.28,0.00016822,2]
[399950203,1766932244047,-465.28,0.00016822,2]
[399950204,1766932244056,-465.28,0.00016822,2]
[399950205,1766932244065,-465.28,0.00016822,2]
[399950206,1766932244076,-465.28,0.00016822,2]
[399950207,1766932244085,-178.62,0.00016822,2]
[399950208,1766932244097,-357.24,0.00016822,2]
[399950209,1766932244106,-178.62,0.00016822,2]
[399950210,1766932244115,-178.62,0.00016822,2]
[399950211,1766932244125,-178.62,0.00016822,2]
[399950212,1766932244136,-178.62,0.00016822,2]
[399950213,1766932244147,-178.62,0.00016822,2]
[399950214,1766932244156,-178.62,0.00016822,2]
[399950215,1766932244166,-1000.0,0.00016827,2]
[399950216,1766932244175,-734.658,0.00016827,2]
[399950217,1766932244184,-1000.0,0.00016827,2]
[399950218,1766932244194,-1000.0,0.00016827,2]
[399950219,1766932244203,-1414.0,0.00016827,2]
[399950220,1766932244217,-293.96,0.00016828,2]
[399950221,1766932244227,-150.0,0.00016832,2]
[399950222,1766932244236,-150.0,0.00016845,2]
[399950223,1766932244246,-150.0,0.00016845,2]
[399950224,1766932244255,-158.87,0.00016853,2]
[399950225,1766932244265,-1000.0,0.00016856,2]
[399950226,1766932244276,-150.0,0.00016862,2]
[399950227,1766932244287,-159.91325088,0.00016877,2]
[399950228,1766932244297,-1271.268,0.00016883,2]
[399950229,1766932244307,-184.177,0.00016883,2]
[399950230,1766932244316,-1514.53,0.0001689,2]
[399950231,1766932244325,-510.36426481,0.0001689,2]
[399950232,1766932244335,-150.0,0.00016897,2]
[399950233,1766932244347,-1081.5927,0.000169,2]
[399950234,1766932244357,-153.09914485,0.000169,2]
[399950235,1766932244367,-10000.0,0.000169,2]
[399950236,1766932244376,-7867.98309177,0.000169,3]
[399950237,1766932244386,-25887.04439985,0.000169,2]
[399950238,1766932244396,-66510.15607146,0.000169,2]
[399950239,1766932244406,-163.64166088,0.000169,2]
[399950240,1766932244415,-1809.81260065,0.000169,2]
[399950241,1766932244425,-180.25946369,0.000169,2]
[399950242,1766932244435,-1725.55166942,0.000169,2]
[399950243,1766932244444,-6593.87419322,0.000169,2]
[399950244,1766932244453,-259.28890097,0.000169,2]
[399950245,1766932244464,-396.10010332,0.000169,2]
[399950246,1766932244474,-5495.0,0.000169,2]
[399950247,1766932244484,-150.0,0.00016901,2]
[399950248,1766932244493,-150.0,0.00016903,2]
[399950249,1766932244503,-150.0,0.00016909,2]
[399950250,1766932244513,-150.0,0.00016916,2]
[399950251,1766932244522,-150.0,0.00016945,2]
[399950252,1766932244531,-500.0,0.00016958,2]
[399950253,1766932244542,-500.0,0.00016958,2]
[399950254,1766932244553,-500.0,0.00016958,2]
[399950255,1766932244562,-500.0,0.00016958,2]
[399950256,1766932244572,-500.0,0.00016958,2]
[399950257,1766932244583,-55351.0,0.00016959,2]
[399950258,1766932244593,-500.93081822,0.00016973,2]
[399950259,1766932244602,-500.0,0.00016973,2]
[399950260,1766932244611,-500.0,0.00016973,2]
[399950261,1766932244620,-500.40933379,0.00016973,2]
[399950262,1766932244630,-500.0,0.00016973,2]
[399950263,1766932244641,-500.0,0.00016973,2]
[399950264,1766932244650,-500.0,0.00016973,2]
[399950265,1766932244660,-500.89852069,0.00016973,2]
[399950266,1766932244670,-168.48146519,0.00016973,2]
[399950267,1766932244679,-500.69794678,0.00016973,2]
[399950268,1766932244689,-578.09055034,0.00016973,2]
[399950269,1766932244700,-206.83161142,0.00016973,2]
[399950270,1766932244711,-500.0,0.00016973,2]
[399950271,1766932244721,-500.0,0.00016973,2]
[399950272,1766932244731,-500.0,0.00016973,2]
[399950273,1766932244740,-160.74421455,0.00016973,2]
[399950274,1766932244751,-331.10187514,0.00016973,2]
[399950275,1766932244760,-590.7718435,0.00016973,2]
[399950276,1766932244769,-500.20512638,0.00016973,2]
[399950277,1766932244780,-160.28956437,0.00016973,2]
[399950278,1766932244790,-333.85698763,0.00016973,2]
[399950279,1766932244801,-231.0888539,0.00016973,2]
[399950280,1766932244810,-500.0,0.00016973,2]
[399950281,1766932244820,-500.0,0.00016973,2]
[399950282,1766932244829,-500.0,0.00016973,2]
[399950283,1766932244839,-500.0,0.00016973,2]
[399950284,1766932244849,-500.0,0.00016973,2]
[399950285,1766932244858,-200.27562112,0.00016973,2]
[399950286,1766932244868,-500.0,0.00016973,2]
[399950287,1766932244877,-500.0,0.00016973,2]
[399950288,1766932244886,-500.0,0.00016973,2]
[399950289,1766932244896,-365.67138507,0.00016973,2]
[399950290,1766932244906,-388.44895572,0.00016973,2]
[399950291,1766932244916,-150.0,0.00016973,2]
[399950292,1766932244926,-151.87453226,0.00016983,2]
[399950293,1766932244936,-505.85873594,0.00016983,2]
[399950294,1766932244946,-294.2331637,0.00016986,2]
[399950295,1766932244955,-151771.06,0.00016986,2]
[399950296,1766932244966,-238.66685974,0.00016986,2]
[399950297,1766932244976,-167.10991065,0.00016986,2]
[399950298,1766932244986,-150.0,0.00016986,2]
[399950299,1766932244996,-170.81056166,0.00016986,2]
[399950300,1766932245006,-257.33467835,0.00016986,2]
[399950301,1766932245015,-156.0209703,0.00016986,2]
[399950302,1766932245025,-150.00000001,0.00016986,2]
[399950303,1766932245035,-173.4351173,0.00016986,2]
[399950304,1766932245045,-152.31137415,0.00016986,2]
[399950306,1766932245055,-154.0769181,0.00016986,2]
[399950308,1766932245065,-286.50926642,0.00016986,2]
[399950310,1766932245075,-174.44983651,0.00016986,2]
[399950312,1766932245084,-2476.94818726,0.00016986,4]
[399950314,1766932245094,-466.80946605,0.00016986,4]
[399950316,1766932245103,-1267.737,0.00016987,2]
[399950317,1766932245113,-435.663,0.00016987,2]
[399950319,1766932245123,-1199.0,0.00016987,2]
[399950321,1766932245133,-912.0,0.00016987,2]
[399950323,1766932245145,-1333.109,0.00016987,2]
[399950325,1766932245154,-613.0,0.00016987,2]
[399950327,1766932245164,-3460.0,0.00016987,2]
[399950329,1766932245173,-2067.76682643,0.0001699,2]
[399950331,1766932245183,-2067.76682643,0.0001699,2]
[399950333,1766932245192,-3423.5220593,0.00016996,2]
[399950335,1766932245202,-500.0,0.00016997,2]
[399950341,1766932245252,-295.85297583,0.00016997,2]
[399950343,1766932245261,-500.0,0.00016997,2]
[399950345,1766932245270,-500.0,0.00016997,2]
[399950346,1766932245279,-218406.8441295,0.00016998,2]
[399950348,1766932245288,-514736.941337,0.00016998,2]
[399950350,1766932245298,-7084.4839587,0.00016998,2]
[399950352,1766932245307,-14270.4021828,0.00016998,2]
[399950354,1766932245317,-39843.9106283,0.00016998,2]
[399950356,1766932245327,-151.0,0.00016998,2]
[399950358,1766932245336,-151.0,0.00016998,2]
[399950360,1766932245346,-151.0,0.00016998,2]
[399950362,1766932245356,-151.0,0.00016998,2]
[399950364,1766932245365,-151.0,0.00016998,2]
[399950366,1766932245374,-151.0,0.00016998,2]
[399950367,1766932245383,-151.0,0.00016998,2]
[399950369,1766932245392,-151.0,0.00016998,2]
[399950371,1766932245400,-151.0,0.00016998,2]
[399950373,1766932245409,-300.0,0.00016999,2]
[399950375,1766932245419,-666.0,0.00016999,2]
[399950377,1766932245430,-300.0,0.00016999,2]
[399950378,1766932245439,-666.0,0.00016999,2]
[399950380,1766932245448,-500.0,0.00016999,2]
[399950382,1766932245458,-500.0,0.00016999,2]
[399950384,1766932245467,-500.0,0.00016999,2]
[399950386,1766932245476,-517.29258934,0.00016999,2]
[399950388,1766932245485,-514.26068371,0.00016999,2]
[399950390,1766932245494,-1582854.04691387,0.00017,2]
[399950394,1766932245629,-1196547.09012664,0.00017,2]
[399950395,1766932245639,-1263188.79145091,0.00017,2]
[399950396,1766932245745,-468.4041955,0.00017,2]
[399950398,1766932245759,-1457765.19794521,0.00017,2]
[399950400,1766932245769,-537272.2141917,0.00017,2]
[399950402,1766932245778,-1144711.9333241,0.00017,2]
[399950416,1766932245907,-1221.21,0.00016192,2]
[399950418,1766932245916,-178.62,0.00016822,2]
[399950420,1766932245926,-180.03835235,0.00016987,2]
[399950853,1766933131028,297.40496335,0.00014254,5]
[399950964,1766933431953,-644.4,0.00013699,2]
[399950965,1766933431964,-300.0,0.00013709,2]
[399950966,1766933431973,-304.50154706,0.00013719,2]
[399950967,1766933431983,-300.0,0.00013738,2]
[399950968,1766933431992,-195.0,0.00013778,2]
[399950969,1766933432001,-205.15644741,0.00014309,2]
[399950970,1766933432011,-224.88,0.00014409,2]
[399950971,1766933432020,-150.0,0.00014521,2]
[399950972,1766933432030,-166.66,0.000149,2]
[399950973,1766933432039,-500.0,0.00014973,2]
[399950974,1766933432048,-500.0,0.00014973,2]
[399950975,1766933432057,-300.0,0.00015066,2]
[399950976,1766933432067,-300.0,0.00015066,2]
[399950977,1766933432076,-1152.66085089,0.00015066,2]
[399950978,1766933432089,-47.33914911,0.00015066,2]
[399950979,1766933432098,-464.37331403,0.00015067,2]
[399950980,1766933432114,-375.62668597,0.00015067,2]
[399950981,1766933432123,-300.0,0.00015068,2]
[399950982,1766933432132,-195.0,0.00015068,2]
[399950983,1766933432142,-600.0,0.00015068,2]
[399950984,1766933432151,-253.99539142,0.00015068,2]
[399950985,1766933432160,-300.0,0.00015068,2]
[399950986,1766933432170,-195.0,0.00015068,2]
[399950987,1766933432179,-600.0,0.00015068,2]
[399950988,1766933432188,-300.0,0.00015068,2]
[399950989,1766933432197,-195.0,0.00015068,2]
[399950990,1766933432206,-250.0,0.00015068,2]
[399950991,1766933432215,-300.0,0.00015068,2]
[399950992,1766933432224,-925.9505,0.00015129,2]
[399950993,1766933432233,-3849.34925757,0.00015129,2]
[399950994,1766933432244,-382.35999,0.00015129,2]
[399950995,1766933432255,-311.43643649,0.00015129,2]
[399950996,1766933432266,-1891.96778752,0.00015129,2]
[399950998,1766933432277,-1292.2457146,0.00015129,2]
[399951000,1766933432288,-499.42980836,0.00015129,2]
[399951002,1766933432299,-1594.4736441,0.00015129,2]
[399951004,1766933432310,-329.24117934,0.00015129,2]
[399951094,1766933438056,-1045.80767326,0.00015129,2]
[399951095,1766933438067,-580.53596721,0.00015129,2]
[399951096,1766933438079,-44556.07804155,0.00015129,2]
[399951097,1766933438088,-159.79298395,0.00015188,2]
[399951098,1766933438098,-2011.34847947,0.00015188,2]
[399951099,1766933438107,-2674.85991965,0.00015188,2]
[399951100,1766933438127,-9755.91987434,0.00015188,2]
[399951101,1766933438136,-5364.83514017,0.00015219,2]
[399951102,1766933438145,-200.0,0.00015225,2]
[399951103,1766933438155,-300.0,0.00015227,2]
[399951104,1766933438164,-150.80909567,0.00015228,2]
[399951105,1766933438173,-304.64556511,0.00015228,2]
[399951106,1766933438183,-198.00309728,0.00015228,2]
[399951107,1766933438191,-500.0,0.00015228,2]
[399951108,1766933438200,-500.0,0.00015228,2]
[399951109,1766933438210,-460.23382494,0.00015228,2]
[399951110,1766933438220,-500.0,0.00015229,2]
[399951111,1766933438229,-500.0,0.00015229,2]
[399951112,1766933438239,-500.0,0.00015229,2]
[399951113,1766933438249,-500.0,0.00015229,2]
[399951114,1766933438258,-483.08577501,0.00015229,2]
[399951115,1766933438268,-1153.506,0.00015229,2]
[399951116,1766933438278,-188.26,0.00015229,2]
[399951117,1766933438287,-500.0,0.00015229,2]
[399951118,1766933438297,-500.0,0.00015229,2]
[399951119,1766933438307,-500.0,0.00015229,2]
[399951120,1766933438317,-509.30290094,0.00015229,2]
[399951121,1766933438327,-500.0,0.00015229,2]
[399951122,1766933438338,-1000000.0,0.00015229,2]
[399951123,1766933438348,-150.0,0.00015288,2]
[399951124,1766933438357,-150.0,0.00015288,2]
[399951125,1766933438370,-150.0,0.00015288,2]
[399951126,1766933438380,-150.0,0.00015288,2]
[399951128,1766933438390,-150.0,0.00015288,2]
[399951130,1766933438399,-150.0,0.00015288,2]
[399951132,1766933438408,-150.0,0.00015288,2]
[399951134,1766933438417,-150.0,0.0001537,2]
[399951136,1766933438427,-2011.34847942,0.00015378,2]
[399951138,1766933438437,-12430.77979398,0.00015378,2]
[399951140,1766933438446,-1000.0,0.00015421,2]
[399951141,1766933438456,-25555.4614,0.00015421,2]
[399951142,1766933438466,-166.66,0.00015515,2]
[399951143,1766933438476,-3324.24764431,0.0001552,2]
[399951144,1766933438486,-1005.41393441,0.00015521,2]
[399951145,1766933438496,-437.57390351,0.00015521,2]
[399951148,1766933438506,-159.79298391,0.0001553,2]
[399951149,1766933438516,-2011.34847942,0.00015568,2]
[399951150,1766933438526,-12430.77979398,0.00015568,2]
[399951151,1766933438536,-150.0,0.00015571,2]
[399951152,1766933438545,-168.0,0.00015707,2]
[399951153,1766933438556,-162.0,0.0001572,2]
[399951154,1766933438566,-2011.34847942,0.00015759,2]
[399951155,1766933438575,-12430.77979398,0.00015759,2]
[399951156,1766933438584,-151.0,0.0001578,2]
[399951157,1766933438594,-151.0,0.0001578,2]
[399951158,1766933438603,-151.0,0.00015781,2]
[399951159,1766933438612,-151.0,0.00015781,2]
[399951160,1766933438622,-150.0,0.00015854,2]
[399951161,1766933438631,-150.0,0.00015854,2]
[399951162,1766933438640,-159.79298391,0.00015873,2]
[399951163,1766933438650,-341.02,0.00015878,2]
[399951164,1766933438663,-501.90830128,0.00015921,2]
[399951165,1766933438673,-405.0,0.00015923,2]
[399951166,1766933438683,-2011.34847942,0.00015949,2]
[399951167,1766933438694,-12430.77979398,0.00015949,2]
[399951168,1766933438705,-178.62,0.00016,2]
[399951169,1766933438715,-178.62,0.00016,2]
[399951170,1766933438724,-178.62,0.00016,2]
[399951171,1766933438734,-178.62,0.00016,2]
[399951172,1766933438744,-178.62,0.00016,2]
[399951173,1766933438753,-178.62,0.00016,2]
[399951174,1766933438763,-178.62,0.00016,2]